fUSD/lending_fUSD_20240628
["ID","MTS","AMOUNT","RATE_DAILY","PERIOD"]
[330543733,1719561135040,-1002.25,0.00020821,2]
[330543734,1719561135049,-1414.89,0.00020821,2]
[330543735,1719561135059,-1177.0,0.00020821,2]
[330543736,1719561135069,-1548.23,0.00020821,2]
[330543737,1719561135079,-1820.37,0.00020821,2]
[330543738,1719561135089,-1324.8,0.00020821,2]
[330543739,1719561135099,-1380.03,0.00020821,2]
[330543740,1719561135108,-500.0,0.00020821,2]
[330543741,1719561135118,-2472.64,0.00020821,2]
[330543742,1719561135127,-705.74,0.00020821,2]
[330543743,1719561135136,-3381.95,0.00020821,2]
[330543744,1719561135145,-5070.88,0.00020821,2]
[330543745,1719561135155,-864.54,0.00020821,2]
[330543746,1719561135164,-2034.01,0.00020821,2]
[330543747,1719561135174,-2105.9,0.00020821,2]
[330543748,1719561135183,-500.0,0.00020821,2]
[330543749,1719561135193,-500.0,0.00020821,2]
[330543750,1719561135202,-1227.23,0.00020821,2]
[330543751,1719561135213,-1396.45,0.00020821,2]
[330543752,1719561135223,-1285.82,0.00020821,2]
[330543753,1719561135232,-500.0,0.00020821,2]
[330543754,1719561135242,-536.38,0.00020821,2]
[330543755,1719561135252,-500.0,0.00020821,2]
[330543756,1719561135262,-1080.4,0.00020821,2]
[330543757,1719561135272,-1135.8,0.00020821,2]
[330543758,1719561135283,-1091.76,0.00020821,2]
[330543759,1719561135292,-3936.72,0.00020821,2]
[330543760,1719561135302,-500.0,0.00020821,2]
[330543761,1719561135311,-500.0,0.00020821,2]
[330543762,1719561135321,-593.56,0.00020821,2]
[330543763,1719561135332,-614.98,0.00020821,2]
[330543764,1719561135341,-500.0,0.00020821,2]
[330543765,1719561135350,-4738.44,0.00020821,2]
[330543766,1719561135360,-500.0,0.00020821,2]
[330543767,1719561135369,-1651.05,0.00020821,2]
[330543768,1719561135378,-1956.77,0.00020821,2]
[330543769,1719561135393,-933.08,0.00020821,2]
[330543770,1719561135411,-500.0,0.00020821,2]
[330543771,1719561135425,-2667.99,0.00020821,2]
[330543772,1719561135441,-6250.57,0.00020821,2]
[330543773,1719561135456,-1063.1,0.00020821,2]
[330543774,1719561135472,-823.18,0.00020821,2]
[330543775,1719561135490,-1293.08,0.00020821,2]
[330543776,1719561135507,-4756.33,0.00020821,2]
[330543777,1719561135522,-500.0,0.00020821,2]
[330543778,1719561135537,-5103.03,0.00020821,2]
[330543779,1719561135552,-721.31,0.00020821,2]
[330543780,1719561135567,-500.0,0.00020821,2]
[330543781,1719561135580,-1439.83,0.00020821,2]
[330543782,1719561135594,-770.64,0.00020821,2]
[330543783,1719561135610,-2458.51,0.00020821,2]
[330543784,1719561135627,-500.0,0.00020821,2]
[330543785,1719561135644,-500.0,0.00020821,2]
[330543786,1719561135656,-1211.11,0.00020821,2]
[330543787,1719561135668,-552.09,0.00020821,2]
[330543788,1719561135682,-3750.61,0.00020821,2]
[330543789,1719561135699,-500.0,0.00020821,2]
[330543790,1719561135712,-500.0,0.00020821,2]
[330543791,1719561135727,-2098.22,0.00020821,2]
[330543792,1719561135740,-500.0,0.00020821,2]
[330543793,1719561135754,-754.56,0.00020821,2]
[330543794,1719561135768,-4491.42,0.00020821,2]
[330543795,1719561135784,-2020.73,0.00020821,2]
[330543796,1719561135797,-500.0,0.00020821,2]
[330543797,1719561135814,-2438.38,0.00020821,2]
[330543798,1719561135827,-1992.71,0.00020821,2]
[330543799,1719561135841,-781.62,0.00020821,2]
[330543800,1719561135859,-500.0,0.00020821,2]
[330543801,1719561135872,-1432.47,0.00020821,2]
[330543802,1719561135886,-500.0,0.00020821,2]
[330543803,1719561135900,-500.0,0.00020821,2]
[330543804,1719561135913,-885.59,0.00020821,2]
[330543805,1719561135927,-1548.3,0.00020821,2]
[330543806,1719561135940,-5534.77,0.00020821,2]
[330543807,1719561135953,-500.0,0.00020821,2]
[330543808,1719561135966,-500.0,0.00020821,2]
[330543809,1719561135978,-4164.92,0.00020821,2]
[330543810,1719561135992,-1994.67,0.00020821,2]
[330543811,1719561136005,-1403.1,0.00020821,2]
[330543812,1719561136018,-814.93,0.00020821,2]
[330543813,1719561136031,-2686.24,0.00020821,2]
[330543814,1719561136044,-526.81,0.00020821,2]
[330543815,1719561136057,-3931.36,0.00020821,2]
[330543816,1719561136071,-500.0,0.00020821,2]
[330543817,1719561136083,-1627.14,0.00020821,2]
[330543818,1719561136097,-500.0,0.00020821,2]
[330543819,1719561136110,-500.0,0.00020821,2]
[330543820,1719561136123,-500.0,0.00020821,2]
[330543821,1719561136137,-1739.9,0.00020821,2]
[330543822,1719561136150,-1201.25,0.00020821,2]
[330543823,1719561136163,-823.37,0.00020821,2]
[330543824,1719561136176,-500.0,0.00020821,2]
[330543825,1719561136188,-1677.95,0.00020821,2]
[330543826,1719561136201,-500.0,0.00020821,2]
[330543827,1719561136213,-466.10722134,0.00020821,2]
[330543828,1719561136226,-500.0,0.00020821,2]
[330543829,1719561136239,-500.0,0.00020821,2]
[330543830,1719561136251,-2423.48,0.00020821,2]
[330543831,1719561136264,-4579.29,0.00020821,2]
[330543832,1719561136276,-564.34,0.00020821,2]
[330543833,1719561136291,-500.0,0.00020821,2]
[330543834,1719561136304,-500.0,0.00020821,2]
[330543835,1719561136317,-500.0,0.00020821,2]
[330543836,1719561136330,-3220.4,0.00020821,2]
[330543837,1719561136344,-4356.08,0.00020821,2]
[330543838,1719561136357,-500.0,0.00020821,2]
[330543839,1719561136371,-10448.28,0.00020821,2]
[330543840,1719561136383,-2461.19,0.00020821,2]
[330543841,1719561136396,-575.39,0.00020821,2]
[330543842,1719561136409,-848.23,0.00020821,2]
[330543843,1719561136421,-4745.96,0.00020821,2]
[330543844,1719561136434,-571.54,0.00020821,2]
[330543845,1719561136447,-500.0,0.00020821,2]
[330543846,1719561136460,-1688.67,0.00020821,2]
[330543847,1719561136473,-500.0,0.00020821,2]
[330543848,1719561136485,-662.7,0.00020821,2]
[330543849,1719561136497,-1372.06,0.00020821,2]
[330543850,1719561136511,-504.88,0.00020821,2]
[330543851,1719561136524,-500.0,0.00020821,2]
[330543852,1719561136540,-1056.34,0.00020821,2]
[330543853,1719561136553,-606.3,0.00020821,2]
[330543854,1719561136566,-1074.08,0.00020821,2]
[330543855,1719561136580,-500.0,0.00020821,2]
[330543856,1719561136592,-2441.39,0.00020821,2]
[330543857,1719561136605,-2465.9,0.00020821,2]
[330543858,1719561136617,-500.0,0.00020821,2]
[330543859,1719561136630,-1390.74,0.00020821,2]
[330543860,1719561136643,-1781.97,0.00020821,2]
[330543861,1719561136656,-500.0,0.00020821,2]
[330543862,1719561136670,-935.7,0.00020821,2]
[330543863,1719561136682,-500.0,0.00020821,2]
[330543864,1719561136695,-525.03,0.00020821,2]
[330543865,1719561136708,-500.0,0.00020821,2]
[330543866,1719561136720,-3285.77,0.00020821,2]
[330543867,1719561136732,-668.57,0.00020821,2]
[330543868,1719561136746,-500.0,0.00020821,2]
[330543869,1719561136758,-1463.5,0.00020821,2]
[330543870,1719561136771,-500.0,0.00020821,2]
[330543871,1719561136784,-1552.82,0.00020821,2]
[330543872,1719561136795,-1287.58,0.00020821,2]
[330543873,1719561136808,-1253.08,0.00020821,2]
[330543874,1719561136820,-500.0,0.00020821,2]
[330543875,1719561136832,-1221.61,0.00020821,2]
[330543876,1719561136845,-500.0,0.00020821,2]
[330543877,1719561136861,-500.0,0.00020821,2]
[330543878,1719561136873,-2098.47,0.00020821,2]
[330543879,1719561136885,-861.59,0.00020821,2]
[330543880,1719561136898,-1171.21,0.00020821,2]
[330543881,1719561136910,-500.0,0.00020821,2]
[330543882,1719561136922,-3809.85,0.00020821,2]
[330543883,1719561136936,-567.31836133,0.00020821,2]
[330543884,1719561136948,-1526.48,0.00020821,2]
[330543885,1719561136959,-1044.61,0.00020821,2]
[330543886,1719561136971,-500.0,0.00020821,2]
[330543887,1719561136983,-2191.37,0.00020821,2]
[330543888,1719561136995,-500.0,0.00020821,2]
[330543889,1719561137007,-500.0,0.00020821,2]
[330543890,1719561137018,-2330.29,0.00020821,2]
[330543891,1719561137032,-1251.54,0.00020821,2]
[330543892,1719561137044,-500.0,0.00020821,2]
[330543893,1719561137057,-1197.85,0.00020821,2]
[330543894,1719561137069,-3118.59,0.00020821,2]
[330543895,1719561137082,-532.97,0.00020821,2]
[330543896,1719561137094,-2052.11,0.00020821,2]
[330543897,1719561137106,-500.0,0.00020821,2]
[330543898,1719561137118,-500.0,0.00020821,2]
[330543899,1719561137130,-5026.87,0.00020821,2]
[330543900,1719561137142,-873.76,0.00020821,2]
[330543901,1719561137153,-1566.0,0.00020821,2]
[330543902,1719561137166,-3596.87,0.00020821,2]
[330543903,1719561137178,-1698.0,0.00020821,2]
[330543904,1719561137190,-1543.01,0.00020821,2]
[330543905,1719561137201,-2335.36,0.00020821,2]
[330543906,1719561137212,-3389.93,0.00020821,2]
[330543907,1719561137224,-648.91,0.00020821,2]
[330543908,1719561137236,-2869.58,0.00020821,2]
[330543909,1719561137249,-595.54,0.00020821,2]
[330543910,1719561137262,-762.46,0.00020821,2]
[330543911,1719561137273,-638.08,0.00020821,2]
[330543912,1719561137286,-978.5,0.00020821,2]
[330543913,1719561137298,-526.25,0.00020821,2]
[330543914,1719561137311,-500.0,0.00020821,2]
[330543915,1719561137323,-780.19,0.00020821,2]
[330543916,1719561137336,-855.45,0.00020821,2]
[330543917,1719561137347,-1000.0,0.00020821,2]
[330543918,1719561137359,-1166.4,0.00020821,2]
[330543919,1719561137371,-779.68,0.00020821,2]
[330543920,1719561137384,-1703.63,0.00020821,2]
[330543921,1719561137396,-12184.84,0.00020821,2]
[330543922,1719561137408,-783.91,0.00020821,2]
[330543923,1719561137420,-4108.34,0.00020821,2]
[330543924,1719561137432,-655.17,0.00020821,2]
[330543925,1719561137444,-577.58,0.00020821,2]
[330543926,1719561137456,-500.0,0.00020821,2]
[330543927,1719561137468,-1494.47,0.00020821,2]
[330543928,1719561137481,-1812.77,0.00020821,2]
[330543929,1719561137493,-1434.26,0.00020821,2]
[330543930,1719561137505,-480.65006811,0.00020821,2]
[330543931,1719561137517,-500.0,0.00020821,2]
[330543932,1719561137529,-803.64,0.00020821,2]
[330543933,1719561137541,-8612.7,0.00020821,2]
[330543934,1719561137554,-500.0,0.00020821,2]
[330543935,1719561137565,-500.0,0.00020821,2]
[330543936,1719561137578,-2570.43,0.00020821,2]
[330543937,1719561137591,-2233.3,0.00020821,2]
[330543938,1719561137602,-564.9,0.00020821,2]
[330543939,1719561137614,-833.81,0.00020821,2]
[330543940,1719561137627,-7571.09,0.00020821,2]
[330543941,1719561137640,-651.19,0.00020821,2]
[330543942,1719561137653,-990.66,0.00020821,2]
[330543943,1719561137665,-1393.07,0.00020821,2]
[330543944,1719561137677,-500.0,0.00020821,2]
[330543945,1719561137690,-795.17,0.00020821,2]
[330543946,1719561137702,-500.0,0.00020821,2]
[330543947,1719561137715,-1571.82,0.00020821,2]
[330543948,1719561137729,-803.77,0.00020821,2]
[330543949,1719561137741,-2442.19,0.00020821,2]
[330543950,1719561137753,-421.62985559,0.00020821,2]
[330543951,1719561137765,-500.0,0.00020821,2]
[330543952,1719561137777,-500.0,0.00020821,2]
[330543953,1719561137790,-500.0,0.00020821,2]
[330543954,1719561137802,-500.0,0.00020821,2]
[330543955,1719561137813,-1017.76,0.00020821,2]
[330543956,1719561137826,-985.98,0.00020821,2]
[330543957,1719561137837,-3900.49,0.00020821,2]
[330543958,1719561137852,-623.56,0.00020821,2]
[330543959,1719561137864,-568.4490166,0.00020821,2]
[330543960,1719561137877,-510.44,0.00020821,2]
[330543961,1719561137892,-3571.61,0.00020821,2]
[330543962,1719561137904,-673.35,0.00020821,2]
[330543963,1719561137917,-3626.35,0.00020821,2]
[330543964,1719561137930,-974.54,0.00020821,2]
[330543965,1719561137942,-500.0,0.00020821,2]
[330543966,1719561137954,-570.93788309,0.00020821,2]
[330543967,1719561137968,-914.91,0.00020821,2]
[330543968,1719561137980,-4977.96,0.00020821,2]
[330543969,1719561137993,-1975.34,0.00020821,2]
[330543970,1719561138006,-668.22,0.00020821,2]
[330543971,1719561138018,-4103.33,0.00020821,2]
[330543972,1719561138040,-929.98,0.00020821,2]
[330543973,1719561138056,-690.61,0.00020821,2]
[330543974,1719561138069,-500.0,0.00020821,2]
[330543975,1719561138082,-2114.11,0.00020821,2]
[330543976,1719561138094,-1444.66,0.00020821,2]
[330543977,1719561138107,-1628.46,0.00020821,2]
[330543978,1719561138120,-933.49,0.00020821,2]
[330543979,1719561138132,-2888.25,0.00020821,2]
[330543980,1719561138145,-500.0,0.00020821,2]
[330543981,1719561138156,-1270.72,0.00020821,2]
[330543982,1719561138168,-3537.73,0.00020821,2]
[330543983,1719561138181,-1988.26,0.00020821,2]
[330543984,1719561138195,-195.42378277,0.00020821,2]
[330543985,1719561138207,-646.8,0.00020821,2]
[330543986,1719561138220,-3537.83,0.00020821,2]
[330543987,1719561138232,-1016.96,0.00020821,2]
[330543988,1719561138244,-500.0,0.00020821,2]
[330543989,1719561138256,-4400.98,0.00020821,2]
[330543990,1719561138270,-500.0,0.00020821,2]
[330543991,1719561138283,-768.32,0.00020821,2]
[330543992,1719561138295,-588.73,0.00020821,2]
[330543993,1719561138307,-6545.79,0.00020821,2]
[330543994,1719561138319,-1070.33,0.00020821,2]
[330543995,1719561138332,-743.46,0.00020821,2]
[330543996,1719561138344,-892.56,0.00020821,2]
[330543997,1719561138357,-1231.54,0.00020821,2]
[330543998,1719561138369,-500.0,0.00020821,2]
[330543999,1719561138381,-895.8,0.00020821,2]
[330544000,1719561138394,-500.0,0.00020821,2]
[330544001,1719561138407,-2097.83,0.00020821,2]
[330544002,1719561138419,-500.0,0.00020821,2]
[330544003,1719561138432,-500.0,0.00020821,2]
[330544004,1719561138445,-3334.25,0.00020821,2]
[330544005,1719561138458,-3150.03,0.00020821,2]
[330544006,1719561138471,-500.0,0.00020821,2]
[330544007,1719561138484,-610.61,0.00020821,2]
[330544008,1719561138497,-500.0,0.00020821,2]
[330544009,1719561138509,-500.0,0.00020821,2]
[330544010,1719561138523,-1099.72,0.00020821,2]
[330544011,1719561138537,-500.0,0.00020821,2]
[330544012,1719561138549,-1552.28,0.00020821,2]
[330544013,1719561138562,-500.0,0.00020821,2]
[330544014,1719561138574,-735.24,0.00020821,2]
[330544015,1719561138587,-1827.69,0.00020821,2]
[330544016,1719561138600,-2422.64,0.00020821,2]
[330544017,1719561138613,-3657.77,0.00020821,2]
[330544018,1719561138626,-500.0,0.00020821,2]
[330544019,1719561138638,-500.0,0.00020821,2]
[330544020,1719561138651,-14987.84,0.00020821,2]
[330544021,1719561138665,-2088.49,0.00020821,2]
[330544022,1719561138677,-561.79,0.00020821,2]
[330544023,1719561138691,-341.68200925,0.00020821,2]
[330544024,1719561138702,-500.0,0.00020821,2]
[330544025,1719561138715,-1894.39,0.00020821,2]
[330544026,1719561138728,-890.94,0.00020821,2]
[330544027,1719561138740,-1243.28,0.00020821,2]
[330544028,1719561138753,-500.0,0.00020821,2]
[330544029,1719561138765,-2029.23,0.00020821,2]
[330544030,1719561138778,-1128.27,0.00020821,2]
[330544031,1719561138791,-500.69999896,0.00020821,2]
[330544032,1719561138804,-604.19,0.00020821,2]
[330544033,1719561138816,-2561.23,0.00020821,2]
[330544034,1719561138829,-500.0,0.00020821,2]
[330544035,1719561138840,-1302.81,0.00020821,2]
[330544036,1719561138855,-500.0,0.00020821,2]
[330544037,1719561138867,-2467.25,0.00020821,2]
[330544038,1719561138880,-580.74,0.00020821,2]
[330544039,1719561138892,-2378.96,0.00020821,2]
[330544040,1719561138907,-519.05,0.00020821,2]
[330544041,1719561138919,-696.42,0.00020821,2]
[330544042,1719561138933,-1077.61,0.00020821,2]
[330544043,1719561138946,-3444.9,0.00020821,2]
[330544044,1719561138959,-500.0,0.00020821,2]
[330544045,1719561138971,-878.91,0.00020821,2]
[330544046,1719561138985,-1810.22,0.00020821,2]
[330544047,1719561138998,-627.25810787,0.00020821,2]
[330544048,1719561139010,-5919.42,0.00020821,2]
[330544049,1719561139023,-931.76,0.00020821,2]
[330544050,1719561139036,-228.2794331,0.00020821,2]
[330544051,1719561139050,-1072.86,0.00020821,2]
[330544052,1719561139062,-1058.14,0.00020821,2]
[330544053,1719561139076,-1191.34,0.00020821,2]
[330544054,1719561139089,-500.0,0.00020821,2]
[330544055,1719561139101,-3215.98,0.00020821,2]
[330544056,1719561139114,-1586.1,0.00020821,2]
[330544057,1719561139126,-12606.71,0.00020821,2]
[330544058,1719561139139,-500.0,0.00020821,2]
[330544059,1719561139152,-687.47,0.00020821,2]
[330544060,1719561139164,-500.0,0.00020821,2]
[330544061,1719561139176,-1219.48,0.00020821,2]
[330544062,1719561139189,-500.0,0.00020821,2]
[330544063,1719561139202,-836.18,0.00020821,2]
[330544064,1719561139216,-625.82,0.00020821,2]
[330544065,1719561139230,-1319.12,0.00020821,2]
[330544066,1719561139242,-1059.97,0.00020821,2]
[330544067,1719561139255,-1041.16,0.00020821,2]
[330544068,1719561139268,-500.0,0.00020821,2]
[330544069,1719561139280,-1776.67,0.00020821,2]
[330544070,1719561139293,-500.0,0.00020821,2]
[330544071,1719561139306,-500.0,0.00020821,2]
[330544072,1719561139318,-500.0,0.00020821,2]
[330544073,1719561139332,-833.16,0.00020821,2]
[330544074,1719561139860,-500.0,0.00020821,2]
[330544075,1719561139896,-852.24,0.00020821,2]
[330544076,1719561139916,-832.89,0.00020821,2]
[330544077,1719561139927,-667.48,0.00020821,2]
[330544078,1719561139937,-500.0,0.00020821,2]
[330544079,1719561139946,-500.0,0.00020821,2]
[330544080,1719561139956,-1285.7,0.00020821,2]
[330544081,1719561139965,-500.0,0.00020821,2]
[330544082,1719561139975,-1976.95,0.00020821,2]
[330544083,1719561139984,-500.0,0.00020821,2]
[330544084,1719561139994,-1115.81,0.00020821,2]
[330544085,1719561140004,-620.27,0.00020821,2]
[330544086,1719561140015,-500.0,0.00020821,2]
[330544087,1719561140023,-1542.91,0.00020821,2]
[330544088,1719561140034,-500.0,0.00020821,2]
[330544089,1719561140043,-1980.39,0.00020821,2]
[330544090,1719561140056,-1594.11,0.00020821,2]
[330544091,1719561140065,-500.0,0.00020821,2]
[330544092,1719561140076,-500.0,0.00020821,2]
[330544093,1719561140086,-1240.01,0.00020821,2]
[330544094,1719561140095,-1834.65,0.00020821,2]
[330544095,1719561140104,-1531.63,0.00020821,2]
[330544096,1719561140113,-893.21,0.00020821,2]
[330544097,1719561140124,-532.59,0.00020821,2]
[330544098,1719561140133,-1176.17,0.00020821,2]
[330544099,1719561140142,-4339.37,0.00020821,2]
[330544100,1719561140151,-609.2769896,0.00020821,2]
[330544101,1719561140161,-1096.31,0.00020821,2]
[330544102,1719561140171,-500.0,0.00020821,2]
[330544103,1719561140180,-791.78,0.00020821,2]
[330544104,1719561140189,-500.0,0.00020821,2]
[330544105,1719561140198,-500.0,0.00020821,2]
[330544106,1719561140208,-500.0,0.00020821,2]
[330544107,1719561140218,-1291.49,0.00020821,2]
[330544108,1719561140229,-1639.09,0.00020821,2]
[330544109,1719561140238,-1124.86,0.00020821,2]
[330544110,1719561140247,-504.91,0.00020821,2]
[330544111,1719561140257,-416.31778395,0.00020821,2]
[330544112,1719561140267,-500.0,0.00020821,2]
[330544113,1719561140277,-588.38,0.00020821,2]
[330544114,1719561140288,-1924.82,0.00020821,2]
[330544115,1719561140297,-500.0,0.00020821,2]
[330544116,1719561140307,-1061.55,0.00020821,2]
[330544117,1719561140316,-500.0,0.00020821,2]
[330544118,1719561140326,-1465.35,0.00020821,2]
[330544119,1719561140335,-500.0,0.00020821,2]
[330544120,1719561140345,-2089.57,0.00020821,2]
[330544121,1719561140355,-166.603975,0.00020821,2]
[330544122,1719561140364,-500.0,0.00020821,2]
[330544123,1719561140373,-734.27,0.00020821,2]
[330544124,1719561140382,-500.0,0.00020821,2]
[330544125,1719561140391,-948.23,0.00020821,2]
[330544126,1719561140401,-3576.87,0.00020821,2]
[330544127,1719561140410,-500.0,0.00020821,2]
[330544128,1719561140419,-3780.4,0.00020821,2]
[330544129,1719561140429,-555.47527463,0.00020821,2]
[330544130,1719561140438,-500.0,0.00020821,2]
[330544131,1719561140447,-500.0,0.00020821,2]
[330544132,1719561140456,-3935.43,0.00020821,2]
[330544133,1719561140466,-500.0,0.00020821,2]
[330544134,1719561140475,-770.26,0.00020821,2]
[330544135,1719561140485,-946.83,0.00020821,2]
[330544136,1719561140494,-500.0,0.00020821,2]
[330544137,1719561140504,-500.0,0.00020821,2]
[330544138,1719561140514,-950.23,0.00020821,2]
[330544139,1719561140524,-500.0,0.00020821,2]
[330544140,1719561140533,-1446.14,0.00020821,2]
[330544141,1719561140543,-2365.29,0.00020821,2]
[330544142,1719561140552,-500.0,0.00020821,2]
[330544143,1719561140562,-4503.97,0.00020821,2]
[330544144,1719561140571,-1659.75,0.00020821,2]
[330544145,1719561140581,-500.0,0.00020821,2]
[330544146,1719561140590,-500.0,0.00020821,2]
[330544147,1719561140599,-3311.36,0.00020821,2]
[330544148,1719561140609,-500.0,0.00020821,2]
[330544149,1719561140619,-500.0,0.00020821,2]
[330544150,1719561140628,-1322.58,0.00020821,2]
[330544151,1719561140638,-783.88,0.00020821,2]
[330544152,1719561140647,-1914.45,0.00020821,2]
[330544153,1719561140657,-500.0,0.00020821,2]
[330544154,1719561140666,-500.0,0.00020821,2]
[330544155,1719561140675,-3498.8,0.00020821,2]
[330544156,1719561140685,-1962.72,0.00020821,2]
[330544157,1719561140694,-500.0,0.00020821,2]
[330544158,1719561140704,-612.16,0.00020821,2]
[330544159,1719561140714,-178.59048175,0.00020821,2]
[330544160,1719561140723,-500.0,0.00020821,2]
[330544161,1719561140733,-1641.9,0.00020821,2]
[330544162,1719561140742,-500.0,0.00020821,2]
[330544163,1719561140752,-500.0,0.00020821,2]
[330544164,1719561140762,-685.98,0.00020821,2]
[330544165,1719561140771,-637.51,0.00020821,2]
[330544166,1719561140781,-3117.56,0.00020821,2]
[330544167,1719561140791,-1141.3,0.00020821,2]
[330544168,1719561140800,-500.0,0.00020821,2]
[330544169,1719561140810,-3602.08,0.00020821,2]
[330544170,1719561140820,-4395.4,0.00020821,2]
[330544171,1719561140829,-3970.07,0.00020821,2]
[330544172,1719561140838,-500.0,0.00020821,2]
[330544173,1719561140848,-2447.28,0.00020821,2]
[330544174,1719561140862,-500.0,0.00020821,2]
[330544175,1719561140871,-1264.09,0.00020821,2]
[330544176,1719561140881,-500.0,0.00020821,2]
[330544177,1719561140891,-3867.01,0.00020821,2]
[330544178,1719561140901,-8127.46,0.00020821,2]
[330544179,1719561140910,-500.0,0.00020821,2]
[330544180,1719561140919,-500.0,0.00020821,2]
[330544181,1719561140929,-764.6,0.00020821,2]
[330544182,1719561140940,-1319.29,0.00020821,2]
[330544183,1719561140949,-500.0,0.00020821,2]
[330544184,1719561140959,-2955.61,0.00020821,2]
[330544185,1719561140969,-2004.62,0.00020821,2]
[330544186,1719561140978,-2128.6,0.00020821,2]
[330544187,1719561140987,-964.57,0.00020821,2]
[330544188,1719561140996,-543.13,0.00020821,2]
[330544189,1719561141006,-500.0,0.00020821,2]
[330544190,1719561141015,-5636.27,0.00020821,2]
[330544191,1719561141026,-500.0,0.00020821,2]
[330544192,1719561141036,-4918.69,0.00020821,2]
[330544193,1719561141045,-4066.1,0.00020821,2]
[330544194,1719561141055,-664.5,0.00020821,2]
[330544195,1719561141065,-4196.26,0.00020821,2]
[330544196,1719561141076,-2426.91,0.00020821,2]
[330544197,1719561141087,-500.0,0.00020821,2]
[330544198,1719561141097,-500.0,0.00020821,2]
[330544199,1719561141106,-500.0,0.00020821,2]
[330544200,1719561141116,-571.57,0.00020821,2]
[330544201,1719561141126,-619.41,0.00020821,2]
[330544202,1719561141135,-1310.02,0.00020821,2]
[330544203,1719561141144,-3529.65,0.00020821,2]
[330544204,1719561141154,-1996.62,0.00020821,2]
[330544205,1719561141163,-790.68,0.00020821,2]
[330544206,1719561141173,-803.47,0.00020821,2]
[330544207,1719561141183,-1259.18,0.00020821,2]
[330544208,1719561141194,-500.0,0.00020821,2]
[330544209,1719561141203,-500.0,0.00020821,2]
[330544210,1719561141212,-3541.7,0.00020821,2]
[330544211,1719561141222,-863.97,0.00020821,2]
[330544212,1719561141231,-530.3,0.00020821,2]
[330544213,1719561141241,-676.52,0.00020821,2]
[330544214,1719561141251,-500.0,0.00020821,2]
[330544215,1719561141261,-731.62,0.00020821,2]
[330544216,1719561141270,-7586.47,0.00020821,2]
[330544217,1719561141281,-500.0,0.00020821,2]
[330544218,1719561141290,-1475.96,0.00020821,2]
[330544219,1719561141299,-500.0,0.00020821,2]
[330544220,1719561141309,-955.45,0.00020821,2]
[330544221,1719561141318,-1270.09,0.00020821,2]
[330544222,1719561141327,-1229.77,0.00020821,2]
[330544223,1719561141337,-500.0,0.00020821,2]
[330544224,1719561141347,-1393.57,0.00020821,2]
[330544225,1719561141357,-2329.0,0.00020821,2]
[330544226,1719561141367,-773.16,0.00020821,2]
[330544227,1719561141376,-500.0,0.00020821,2]
[330544228,1719561141386,-986.15,0.00020821,2]
[330544229,1719561141395,-1485.78,0.00020821,2]
[330544230,1719561141404,-5063.06,0.00020821,2]
[330544231,1719561141413,-500.0,0.00020821,2]
[330544232,1719561141422,-1707.42,0.00020821,2]